[Event "Irish Championship 2026"]
[Site "Talbot Hotel Stillorgan, Co.Dublin, IE"]
[Date "2026.08.04"]
[Round "4"]
[White "Lorigan, Maxim"]
[Black "Field, Lila Quinn"]
[Result "1/2-1/2"]
[Board "84"]
[TimeControl "40/5400+30:1800+30"]
[WhiteFideId "2518198"]
[BlackFideId "30941334"]
[WhiteElo "1762"]
[BlackElo "1898"]
[WhiteClock "0:15:21"]
[BlackClock "0:09:50"]
[Variant "Standard"]
[EndDate "2026.08.04"]
[EndTime "19:28:11"]

1. d4 {[%clk 1:30:51]}  d5 {[%clk 1:30:54]} 2. c4 {[%clk 1:31:04]}  dxc4 {[%clk 1:31:16]} 3. Nf3 {[%clk 1:31:06]}  b5 {[%clk 1:31:26]}
4. e3 {[%clk 1:30:54]}  e6 {[%clk 1:31:22]} 5. a4 {[%clk 1:29:23]}  c6 {[%clk 1:31:35]} 6. axb5 {[%clk 1:28:00]}  cxb5 {[%clk 1:31:49]}
7. b3 {[%clk 1:24:53]}  Nf6 {[%clk 1:32:09]} 8. bxc4 {[%clk 1:23:39]}  bxc4 {[%clk 1:32:30]} 9. Bxc4 {[%clk 1:23:22]}  Bd6 {[%clk 1:32:48]}
10. O-O {[%clk 1:22:02]}  O-O {[%clk 1:33:11]} 11. Bb2 {[%clk 1:17:45]}  Nc6 {[%clk 1:26:07]} 12. Nbd2 {[%clk 1:13:49]}  Rb8 {[%clk 1:24:52]}
13. Bc3 {[%clk 1:13:01]}  Qc7 {[%clk 1:09:28]} 14. e4 {[%clk 1:06:26]}  Bb4 {[%clk 1:06:21]} 15. Qc2 {[%clk 0:59:23]}  a5 {[%clk 1:01:03]}
16. e5 {[%clk 0:54:32]}  Bxc3 {[%clk 0:52:03]} 17. Qxc3 {[%clk 0:54:43]}  Nd7 {[%clk 0:42:16]} 18. Bd3 {[%clk 0:46:31]}  h6 {[%clk 0:39:05]}
19. Nb3 {[%clk 0:42:31]}  Ra8 {[%clk 0:36:46]} 20. Ra3 {[%clk 0:39:44]}  a4 {[%clk 0:34:46]} 21. Rxa4 {[%clk 0:39:44]}  Ra6 {[%clk 0:34:42]}
22. Ra5 {[%clk 0:39:58]}  Rxa5 {[%clk 0:34:46]} 23. Nxa5 {[%clk 0:39:43]}  Qxa5 {[%clk 0:34:42]} 24. Qxc6 {[%clk 0:39:58]}  Nb6 {[%clk 0:29:39]}
25. Qe4 {[%clk 0:38:24]}  g6 {[%clk 0:26:00]} 26. Nh4 {[%clk 0:32:28]}  Qa7 {[%clk 0:26:04]} 27. Qf4 {[%clk 0:29:53]}  Kg7 {[%clk 0:24:13]}
28. Qg3 {[%clk 0:27:08]}  Kg8 {[%clk 0:24:01]} 29. Rb1 {[%clk 0:22:42]}  Nd5 {[%clk 0:18:19]} 30. Bxg6 {[%clk 0:20:37]}  Qxd4 {[%clk 0:09:38]}
31. Be4+ {[%clk 0:15:12]}  Kh8 {[%clk 0:09:50]} 32. Bxd5 {[%clk 0:15:21]} 1/2-1/2

[Event "Irish Championship 2026"]
[Site "Talbot Hotel Stillorgan, Co.Dublin, IE"]
[Date "2026.08.04"]
[Round "4"]
[White "Singhal, Vivaan"]
[Black "Campbell, Andrew"]
[Result "1-0"]
[Board "85"]
[TimeControl "40/5400+30:1800+30"]
[WhiteFideId "2516721"]
[BlackFideId "2518392"]
[WhiteElo "1878"]
[BlackElo "1951"]
[WhiteClock "0:07:08"]
[BlackClock "0:23:50"]
[Variant "Standard"]
[EndDate "2026.08.04"]
[EndTime "17:22:38"]

1. d4 {[%clk 1:30:57]}  Nf6 {[%clk 1:30:57]} 2. Nf3 {[%clk 1:31:21]}  g6 {[%clk 1:31:13]} 3. c4 {[%clk 1:31:40]}  Bg7 {[%clk 1:31:36]}
4. e3 {[%clk 1:32:03]}  O-O {[%clk 1:30:59]} 5. Be2 {[%clk 1:32:29]}  d6 {[%clk 1:30:31]} 6. Nc3 {[%clk 1:32:15]}  c5 {[%clk 1:24:47]}
7. d5 {[%clk 1:28:12]}  e6 {[%clk 1:21:52]} 8. e4 {[%clk 1:25:44]}  exd5 {[%clk 1:17:40]} 9. exd5 {[%clk 1:20:46]}  Re8 {[%clk 1:17:05]}
10. O-O {[%clk 1:20:59]}  a6 {[%clk 1:14:59]} 11. Bf4 {[%clk 1:17:13]}  Nh5 {[%clk 1:13:56]} 12. Bg5 {[%clk 1:12:52]}  Qb6 {[%clk 1:03:19]}
13. Qd2 {[%clk 1:10:29]}  Nf6 {[%clk 0:58:24]} 14. Rab1 {[%clk 1:02:44]}  Bf5 {[%clk 0:58:13]} 15. Bd3 {[%clk 1:02:57]}  Bxd3 {[%clk 0:58:41]}
16. Qxd3 {[%clk 1:03:19]}  h6 {[%clk 0:56:41]} 17. Bf4 {[%clk 0:59:13]}  Nh5 {[%clk 0:54:35]} 18. Be3 {[%clk 0:58:36]}  Qc7 {[%clk 0:51:52]}
19. a3 {[%clk 0:49:53]}  Nd7 {[%clk 0:50:42]} 20. Rfc1 {[%clk 0:44:55]}  g5 {[%clk 0:42:07]} 21. b4 {[%clk 0:36:36]}  b6 {[%clk 0:39:37]}
22. b5 {[%clk 0:29:52]}  a5 {[%clk 0:39:46]} 23. Qf5 {[%clk 0:29:12]}  Ne5 {[%clk 0:38:42]} 24. Nxe5 {[%clk 0:26:25]}  Rxe5 {[%clk 0:38:59]}
25. Qf3 {[%clk 0:21:22]}  Nf6 {[%clk 0:39:15]} 26. h4 {[%clk 0:20:57]}  g4 {[%clk 0:36:42]} 27. Qg3 {[%clk 0:20:08]}  Bf8 {[%clk 0:29:38]}
28. Bf4 {[%clk 0:18:21]}  Ree8 {[%clk 0:27:49]} 29. Re1 {[%clk 0:15:50]}  Qd7 {[%clk 0:28:16]} 30. Qd3 {[%clk 0:14:48]}  Kg7 {[%clk 0:23:40]}
31. Re2 {[%clk 0:10:19]}  Rxe2 {[%clk 0:23:31]} 32. Nxe2 {[%clk 0:10:44]}  Re8 {[%clk 0:23:43]} 33. Ng3 {[%clk 0:10:38]}  Ng8 {[%clk 0:23:05]}
34. Nh5+ {[%clk 0:08:58]}  Kh8 {[%clk 0:23:34]} 35. Qc3+ {[%clk 0:07:11]}  Kh7 {[%clk 0:23:50]} 36. Qd3+ {[%clk 0:07:08]} 1-0

[Event "Irish Championship 2026"]
[Site "Talbot Hotel Stillorgan, Co.Dublin, IE"]
[Date "2026.08.04"]
[Round "4"]
[White "Healy, John"]
[Black "Doolin, Nemhain"]
[Result "1-0"]
[Board "86"]
[TimeControl "40/5400+30:1800+30"]
[WhiteFideId "2500965"]
[BlackFideId "2517230"]
[WhiteElo "1928"]
[BlackElo "1915"]
[WhiteClock "0:58:04"]
[BlackClock "0:14:42"]
[Variant "Standard"]
[EndDate "2026.08.04"]
[EndTime "17:47:58"]

1. e4 {[%clk 1:28:48]}  e6 {[%clk 1:30:52]} 2. d4 {[%clk 1:29:02]}  d5 {[%clk 1:31:17]} 3. e5 {[%clk 1:28:30]}  c5 {[%clk 1:31:43]}
4. Nf3 {[%clk 1:28:54]}  cxd4 {[%clk 1:32:03]} 5. Bd3 {[%clk 1:29:17]}  Nc6 {[%clk 1:31:07]} 6. O-O {[%clk 1:29:38]}  Nge7 {[%clk 1:28:30]}
7. Re1 {[%clk 1:29:11]}  Ng6 {[%clk 1:27:01]} 8. a3 {[%clk 1:29:17]}  Be7 {[%clk 1:26:06]} 9. g3 {[%clk 1:28:32]}  Qc7 {[%clk 1:23:09]}
10. Qe2 {[%clk 1:28:48]}  Bd7 {[%clk 1:21:16]} 11. Nbd2 {[%clk 1:28:51]}  Bc5 {[%clk 1:17:28]} 12. b4 {[%clk 1:28:25]}  Bb6 {[%clk 1:16:51]}
13. Bb2 {[%clk 1:17:33]}  O-O {[%clk 1:12:52]} 14. b5 {[%clk 1:14:28]}  Na5 {[%clk 1:03:12]} 15. Nxd4 {[%clk 1:13:37]}  Bxd4 {[%clk 1:00:07]}
16. Bxd4 {[%clk 1:13:58]}  f5 {[%clk 0:58:21]} 17. f4 {[%clk 1:01:44]}  b6 {[%clk 0:50:31]} 18. Rab1 {[%clk 1:01:14]}  Rac8 {[%clk 0:46:54]}
19. Rb4 {[%clk 1:01:23]}  Ne7 {[%clk 0:45:23]} 20. a4 {[%clk 1:00:11]}  Nb7 {[%clk 0:44:14]} 21. Qe3 {[%clk 0:53:23]}  Nc5 {[%clk 0:40:48]}
22. Be2 {[%clk 0:52:24]}  Be8 {[%clk 0:34:05]} 23. Qa3 {[%clk 0:49:00]}  Bf7 {[%clk 0:28:44]} 24. Rb2 {[%clk 0:47:08]}  Rfd8 {[%clk 0:21:07]}
25. Ra1 {[%clk 0:46:14]}  Ne4 {[%clk 0:16:24]} 26. Qb4 {[%clk 0:45:14]}  Qb7 {[%clk 0:13:24]} 27. a5 {[%clk 0:44:24]}  Rc7 {[%clk 0:09:15]}
28. axb6 {[%clk 0:44:20]}  axb6 {[%clk 0:09:31]} 29. Ra6 {[%clk 0:44:45]}  Nc5 {[%clk 0:07:48]} 30. Bxc5 {[%clk 0:38:44]}  Rxc5 {[%clk 0:07:38]}
31. Nb3 {[%clk 0:38:34]}  Rc7 {[%clk 0:05:25]} 32. Nd4 {[%clk 0:37:14]}  g6 {[%clk 0:03:46]} 33. Rba2 {[%clk 0:37:04]}  Kg7 {[%clk 0:03:22]}
34. Bd3 {[%clk 0:35:49]}  Qb8 {[%clk 0:01:38]} 35. R2a4 {[%clk 0:35:34]}  Qb7 {[%clk 0:01:23]} 36. Qa3 {[%clk 0:35:46]}  Rb8 {[%clk 0:01:07]}
37. Qd6 {[%clk 0:34:50]}  Qc8 {[%clk 0:00:35]} 38. Rxb6 {[%clk 0:34:15]}  Rxb6 {[%clk 0:00:41]} 39. Qxb6 {[%clk 0:34:39]}  Rb7 {[%clk 0:00:49]}
40. Qa6 {[%clk 0:34:37]}  Qd7 {[%clk 0:01:03]} 41. Nc6 {[%clk 0:32:02]}  Nc8 {[%clk 0:30:19]} 42. Qa5 {[%clk 1:01:16]}  Nb6 {[%clk 0:29:57]}
43. Ra1 {[%clk 1:01:04]}  d4 {[%clk 0:27:56]} 44. Qb4 {[%clk 1:00:27]}  Qd5 {[%clk 0:25:47]} 45. Qxd4 {[%clk 1:00:08]}  Qxd4+ {[%clk 0:19:36]}
46. Nxd4 {[%clk 1:00:30]}  Nd5 {[%clk 0:18:40]} 47. Rb1 {[%clk 0:59:21]}  Kf8 {[%clk 0:18:56]} 48. c4 {[%clk 0:59:43]}  Nc3 {[%clk 0:18:26]}
49. Rc1 {[%clk 0:59:27]}  Na4 {[%clk 0:18:26]} 50. Bc2 {[%clk 0:56:41]}  Nc5 {[%clk 0:17:45]} 51. Nb3 {[%clk 0:57:04]}  Nd7 {[%clk 0:18:06]}
52. Bd3 {[%clk 0:57:14]}  Ke7 {[%clk 0:17:39]} 53. c5 {[%clk 0:57:27]}  Nb8 {[%clk 0:17:17]} 54. c6 {[%clk 0:57:32]}  Rc7 {[%clk 0:16:10]}
55. Nd4 {[%clk 0:57:27]}  Nd7 {[%clk 0:15:56]} 56. Ra1 {[%clk 0:57:26]}  Nb6 {[%clk 0:14:51]} 57. Ra6 {[%clk 0:57:45]}  Nd5 {[%clk 0:14:42]}
58. b6 {[%clk 0:58:04]} 1-0

[Event "Irish Championship 2026"]
[Site "Talbot Hotel Stillorgan, Co.Dublin, IE"]
[Date "2026.08.05"]
[Round "5"]
[White "Campbell, Andrew"]
[Black "Doolin, Nemhain"]
[Result "0-1"]
[Board "87"]
[TimeControl "40/5400+30:1800+30"]
[WhiteFideId "2518392"]
[BlackFideId "2517230"]
[WhiteElo "1951"]
[BlackElo "1915"]
[WhiteClock "0:43:54"]
[BlackClock "0:39:06"]
[Variant "Standard"]
[EndDate "2026.08.05"]
[EndTime "17:25:24"]

1. d4 {[%clk 1:30:58]}  d5 {[%clk 1:30:58]} 2. Nc3 {[%clk 1:31:22]}  Nf6 {[%clk 1:31:21]} 3. Bf4 {[%clk 1:31:46]}  c5 {[%clk 1:31:41]}
4. e4 {[%clk 1:31:20]}  Nxe4 {[%clk 1:31:52]} 5. Nxe4 {[%clk 1:31:44]}  dxe4 {[%clk 1:32:18]} 6. dxc5 {[%clk 1:32:08]}  Qa5+ {[%clk 1:32:04]}
7. c3 {[%clk 1:32:32]}  Qxc5 {[%clk 1:32:55]} 8. Qa4+ {[%clk 1:33:28]}  Nc6 {[%clk 1:33:16]} 9. Qxe4 {[%clk 1:33:47]}  g6 {[%clk 1:33:09]}
10. Nf3 {[%clk 1:32:51]}  Bg7 {[%clk 1:33:03]} 11. Rd1 {[%clk 1:30:31]}  O-O {[%clk 1:31:49]} 12. Be2 {[%clk 1:29:16]}  Bf5 {[%clk 1:29:42]}
13. Qa4 {[%clk 1:26:58]}  Rfd8 {[%clk 1:25:18]} 14. O-O {[%clk 1:26:39]}  Qb6 {[%clk 1:21:05]} 15. Qa3 {[%clk 1:21:16]}  Bc2 {[%clk 1:16:10]}
16. Rc1 {[%clk 1:11:56]}  Bd3 {[%clk 1:12:13]} 17. Rfe1 {[%clk 1:11:25]}  Bxe2 {[%clk 1:10:46]} 18. Rxe2 {[%clk 1:09:51]}  Rd7 {[%clk 1:09:41]}
19. Rce1 {[%clk 1:07:14]}  Rad8 {[%clk 1:02:49]} 20. h3 {[%clk 1:06:30]}  Rd1 {[%clk 0:56:14]} 21. Kh2 {[%clk 1:03:50]}  Rxe1 {[%clk 0:55:00]}
22. Nxe1 {[%clk 1:04:06]}  Qb5 {[%clk 0:53:22]} 23. Rd2 {[%clk 0:49:00]}  Rxd2 {[%clk 0:48:23]} 24. Bxd2 {[%clk 0:49:28]}  Qe2 {[%clk 0:46:58]}
25. Nf3 {[%clk 0:49:53]}  Qxf2 {[%clk 0:46:32]} 26. Bf4 {[%clk 0:49:23]}  Qb6 {[%clk 0:43:16]} 27. b4 {[%clk 0:44:12]}  e5 {[%clk 0:40:46]}
28. Bg3 {[%clk 0:44:04]}  e4 {[%clk 0:39:06]} 29. Nd2 {[%clk 0:43:54]}  Qe3 {[%clk 0:39:06]} 30. Nc4 {[%clk 0:43:54]}  Qxc3 {[%clk 0:39:06]}
31. Qxc3 {[%clk 0:43:54]}  Bxc3 {[%clk 0:39:06]} 32. b5 {[%clk 0:43:54]}  Na5 {[%clk 0:39:06]} 33. Nxa5 {[%clk 0:43:54]}  Bxa5 {[%clk 0:39:06]}
34. Kg1 {[%clk 0:43:54]} 0-1

[Event "Irish Championship 2026"]
[Site "Talbot Hotel Stillorgan, Co.Dublin, IE"]
[Date "2026.08.06"]
[Round "6"]
[White "Collins, Adam"]
[Black "Tureshbayev, Anuar"]
[Result "1/2-1/2"]
[Board "61"]
[TimeControl "40/5400+30:1800+30"]
[WhiteFideId "2512300"]
[BlackFideId "651081709"]
[WhiteElo "2340"]
[BlackElo "2250"]
[WhiteTitle "FM"]
[BlackTitle "FM"]
[WhiteClock "0:08:10"]
[BlackClock "0:38:34"]
[Variant "Standard"]
[EndDate "2026.08.06"]
[EndTime "16:55:01"]

1. Nf3 {[%clk 1:30:01]}  Nf6 {[%clk 1:30:34]} 2. g3 {[%clk 1:30:23]}  b5 {[%clk 1:31:00]} 3. Bg2 {[%clk 1:29:22]}  Bb7 {[%clk 1:31:23]}
4. Na3 {[%clk 1:29:27]}  a6 {[%clk 1:31:47]} 5. c4 {[%clk 1:29:51]}  e5 {[%clk 1:31:36]} 6. cxb5 {[%clk 1:19:46]}  Bxa3 {[%clk 1:31:58]}
7. bxa3 {[%clk 1:19:57]}  axb5 {[%clk 1:32:24]} 8. O-O {[%clk 1:17:56]}  d6 {[%clk 1:32:26]} 9. Rb1 {[%clk 1:14:42]}  O-O {[%clk 1:32:33]}
10. d3 {[%clk 1:06:56]}  c5 {[%clk 1:07:07]} 11. Rxb5 {[%clk 0:53:19]}  Bc6 {[%clk 1:07:25]} 12. Rb1 {[%clk 0:52:53]}  Nbd7 {[%clk 1:05:58]}
13. Ne1 {[%clk 0:43:59]}  Bxg2 {[%clk 1:03:38]} 14. Nxg2 {[%clk 0:42:13]}  Nb6 {[%clk 0:54:40]} 15. Qb3 {[%clk 0:38:52]}  Na4 {[%clk 0:53:32]}
16. Bg5 {[%clk 0:37:44]}  h6 {[%clk 0:52:00]} 17. Bxf6 {[%clk 0:37:49]}  Qxf6 {[%clk 0:52:15]} 18. Ne3 {[%clk 0:35:58]}  Qg5 {[%clk 0:47:44]}
19. Qc2 {[%clk 0:30:36]}  h5 {[%clk 0:44:32]} 20. h4 {[%clk 0:27:58]}  Qh6 {[%clk 0:42:59]} 21. Qc4 {[%clk 0:27:59]}  Qe6 {[%clk 0:41:09]}
22. Nd5 {[%clk 0:26:52]}  Rfb8 {[%clk 0:39:30]} 23. e4 {[%clk 0:26:34]}  Rxb1 {[%clk 0:37:44]} 24. Rxb1 {[%clk 0:26:56]}  g5 {[%clk 0:36:47]}
25. hxg5 {[%clk 0:26:01]}  Kg7 {[%clk 0:36:13]} 26. Rb7 {[%clk 0:23:25]}  h4 {[%clk 0:36:05]} 27. Ne3 {[%clk 0:21:36]}  Qxc4 {[%clk 0:36:25]}
28. Nxc4 {[%clk 0:20:36]}  hxg3 {[%clk 0:36:48]} 29. f3 {[%clk 0:19:27]}  Nc3 {[%clk 0:36:33]} 30. Kg2 {[%clk 0:12:40]}  Ne2 {[%clk 0:36:49]}
31. Rb2 {[%clk 0:12:34]}  Rh8 {[%clk 0:37:14]} 32. Rxe2 {[%clk 0:07:36]}  Rh2+ {[%clk 0:37:41]} 33. Kf1 {[%clk 0:07:50]}  Rh1+ {[%clk 0:38:08]}
34. Kg2 {[%clk 0:08:10]}  Rh2+ {[%clk 0:38:34]} 1/2-1/2

[Event "Irish Championship 2026"]
[Site "Talbot Hotel Stillorgan, Co.Dublin, IE"]
[Date "2026.08.06"]
[Round "6"]
[White "Jacob Flynn"]
[Black "Jessel, Stephen"]
[Result "1/2-1/2"]
[Board "62"]
[TimeControl "40/5400+30:1800+30"]
[BlackFideId "628859"]
[WhiteElo "2289"]
[BlackElo "2364"]
[BlackTitle "FM"]
[WhiteClock "0:27:45"]
[BlackClock "0:25:16"]
[Variant "Standard"]
[EndDate "2026.08.06"]
[EndTime "17:50:15"]

1. e4 {[%clk 1:30:55]}  e6 {[%clk 1:30:32]} 2. d4 {[%clk 1:31:08]}  d5 {[%clk 1:29:34]} 3. e5 {[%clk 1:30:59]}  Bd7 {[%clk 1:29:43]}
4. Nf3 {[%clk 1:31:07]}  a6 {[%clk 1:29:22]} 5. Be2 {[%clk 1:30:59]}  Bb5 {[%clk 1:27:58]} 6. O-O {[%clk 1:30:56]}  Bxe2 {[%clk 1:15:43]}
7. Qxe2 {[%clk 1:28:40]}  Ne7 {[%clk 1:14:01]} 8. c3 {[%clk 1:26:17]}  Nf5 {[%clk 1:07:49]} 9. Rd1 {[%clk 1:24:34]}  h5 {[%clk 0:57:54]}
10. g3 {[%clk 1:09:28]}  Be7 {[%clk 0:50:38]} 11. h4 {[%clk 1:08:43]}  g6 {[%clk 0:43:54]} 12. a4 {[%clk 0:59:54]}  Kf8 {[%clk 0:36:32]}
13. b4 {[%clk 0:56:10]}  Kg7 {[%clk 0:34:55]} 14. a5 {[%clk 0:54:26]}  Nc6 {[%clk 0:29:42]} 15. Bf4 {[%clk 0:46:55]}  Qe8 {[%clk 0:25:21]}
16. Nbd2 {[%clk 0:46:38]}  Na7 {[%clk 0:24:05]} 17. Nb3 {[%clk 0:43:50]}  Nb5 {[%clk 0:15:40]} 18. Qd2 {[%clk 0:42:12]}  c6 {[%clk 0:10:05]}
19. Nc5 {[%clk 0:39:34]}  Rb8 {[%clk 0:09:23]} 20. Kf1 {[%clk 0:36:12]}  Qd8 {[%clk 0:07:00]} 21. Ng5 {[%clk 0:36:00]}  Nc7 {[%clk 0:06:36]}
22. Na4 {[%clk 0:34:32]}  Kg8 {[%clk 0:06:15]} 23. Ke2 {[%clk 0:34:20]}  Ne8 {[%clk 0:05:23]} 24. Rh1 {[%clk 0:33:57]}  Neg7 {[%clk 0:02:53]}
25. Nf3 {[%clk 0:28:07]}  Qe8 {[%clk 0:02:39]} 26. Ne1 {[%clk 0:28:10]}  Qd8 {[%clk 0:02:20]} 27. Nd3 {[%clk 0:28:05]}  Qe8 {[%clk 0:01:58]}
28. Ndc5 {[%clk 0:27:31]}  Qd8 {[%clk 0:01:43]} 29. Nb6 {[%clk 0:27:51]}  Qc7 {[%clk 0:00:43]} 30. Ncd7 {[%clk 0:27:25]}  Rd8 {[%clk 0:01:00]}
31. Nc5 {[%clk 0:22:10]}  Ne8 {[%clk 0:00:43]} 32. Rag1 {[%clk 0:21:35]}  Kf8 {[%clk 0:00:47]} 33. Kd1 {[%clk 0:19:49]}  Rh7 {[%clk 0:00:49]}
34. Rg2 {[%clk 0:16:21]}  Neg7 {[%clk 0:01:00]} 35. Rgh2 {[%clk 0:16:15]}  Kg8 {[%clk 0:01:03]} 36. Qe1 {[%clk 0:15:54]}  Ne8 {[%clk 0:00:50]}
37. f3 {[%clk 0:15:11]}  Kh8 {[%clk 0:00:52]} 38. Kc2 {[%clk 0:09:23]}  Kg8 {[%clk 0:00:56]} 39. g4 {[%clk 0:06:37]}  Nfg7 {[%clk 0:01:18]}
40. Qg3 {[%clk 0:02:56]}  Kh8 {[%clk 0:01:31]} 41. Nd3 {[%clk 0:00:37]}  Rb8 {[%clk 0:27:21]} 42. Nc5 {[%clk 0:30:19]}  Kg8 {[%clk 0:25:32]}
43. Qe1 {[%clk 0:30:02]}  Rd8 {[%clk 0:25:18]} 44. Qe3 {[%clk 0:29:58]}  Kh8 {[%clk 0:25:14]} 45. Bg5 {[%clk 0:29:37]}  Kg8 {[%clk 0:25:06]}
46. Bf4 {[%clk 0:29:02]}  Kf8 {[%clk 0:24:26]} 47. Bh6 {[%clk 0:28:43]}  Kg8 {[%clk 0:26:45]} 48. Bg5 {[%clk 0:28:29]}  Bxg5 {[%clk 0:26:33]}
49. hxg5 {[%clk 0:27:45]}  Kh8 {[%clk 0:25:16]} 1/2-1/2

[Event "Irish Championship 2026"]
[Site "Talbot Hotel Stillorgan, Co.Dublin, IE"]
[Date "2026.08.06"]
[Round "6"]
[White "Brozynski, Patryk"]
[Black "Venkatesan, Kavin"]
[Result "1/2-1/2"]
[Board "63"]
[TimeControl "40/5400+30:1800+30"]
[WhiteFideId "2512700"]
[BlackFideId "2512602"]
[WhiteElo "2224"]
[BlackElo "2297"]
[WhiteTitle "CM"]
[BlackTitle "FM"]
[WhiteClock "0:03:28"]
[BlackClock "0:01:08"]
[Variant "Standard"]
[EndDate "2026.08.06"]
[EndTime "17:36:37"]

1. e4 {[%clk 1:28:42]}  c5 {[%clk 1:30:55]} 2. Nf3 {[%clk 1:28:36]}  d6 {[%clk 1:31:19]} 3. d4 {[%clk 1:28:44]}  cxd4 {[%clk 1:31:45]}
4. Nxd4 {[%clk 1:28:42]}  Nf6 {[%clk 1:32:09]} 5. Nc3 {[%clk 1:28:40]}  Nc6 {[%clk 1:32:33]} 6. Bg5 {[%clk 1:28:05]}  e6 {[%clk 1:32:50]}
7. Qd3 {[%clk 1:26:24]}  Bd7 {[%clk 1:32:54]} 8. O-O-O {[%clk 1:25:53]}  a6 {[%clk 1:33:00]} 9. Nxc6 {[%clk 1:24:34]}  Bxc6 {[%clk 1:31:44]}
10. Be2 {[%clk 1:08:20]}  Be7 {[%clk 1:13:03]} 11. Bf4 {[%clk 0:35:31]}  Qb6 {[%clk 0:32:37]} 12. Bxd6 {[%clk 0:23:50]}  Bxd6 {[%clk 0:24:45]}
13. Qxd6 {[%clk 0:24:03]}  Qxf2 {[%clk 0:22:20]} 14. Bf3 {[%clk 0:11:32]}  Nd7 {[%clk 0:20:10]} 15. Rd4 {[%clk 0:05:54]}  Qh4 {[%clk 0:12:57]}
16. Rhd1 {[%clk 0:03:48]}  Qg5+ {[%clk 0:11:39]} 17. Kb1 {[%clk 0:04:08]}  Qe5 {[%clk 0:11:23]} 18. Qa3 {[%clk 0:03:24]}  O-O-O {[%clk 0:08:41]}
19. Qe7 {[%clk 0:01:43]}  Qf6 {[%clk 0:07:50]} 20. Qb4 {[%clk 0:01:24]}  Ne5 {[%clk 0:07:04]} 21. Be2 {[%clk 0:01:42]}  Rxd4 {[%clk 0:06:56]}
22. Rxd4 {[%clk 0:01:58]}  Rd8 {[%clk 0:06:49]} 23. a3 {[%clk 0:01:51]}  Rxd4 {[%clk 0:06:28]} 24. Qxd4 {[%clk 0:02:20]}  Nd7 {[%clk 0:06:13]}
25. Qd6 {[%clk 0:02:01]}  Qe5 {[%clk 0:05:31]} 26. Qe7 {[%clk 0:02:27]}  Qf6 {[%clk 0:04:59]} 27. Qd6 {[%clk 0:02:46]}  Qe5 {[%clk 0:05:27]}
28. Qe7 {[%clk 0:03:10]}  Qf4 {[%clk 0:05:04]} 29. Bd3 {[%clk 0:02:15]}  h6 {[%clk 0:04:38]} 30. g3 {[%clk 0:02:28]}  Qf6 {[%clk 0:04:48]}
31. Qd6 {[%clk 0:02:47]}  Qe5 {[%clk 0:05:17]} 32. Qe7 {[%clk 0:03:07]}  Qf6 {[%clk 0:04:20]} 33. Qd6 {[%clk 0:03:19]}  Qe5 {[%clk 0:03:09]}
34. Qe7 {[%clk 0:03:28]}  Qf6 {[%clk 0:01:08]} 1/2-1/2

[Event "Irish Championship 2026"]
[Site "Talbot Hotel Stillorgan, Co.Dublin, IE"]
[Date "2026.08.06"]
[Round "6"]
[White "Arun, Nitish"]
[Black "Melaugh, Shane"]
[Result "1/2-1/2"]
[Board "64"]
[TimeControl "40/5400+30:1800+30"]
[WhiteFideId "2524201"]
[BlackFideId "2509580"]
[WhiteElo "2175"]
[BlackElo "2157"]
[WhiteTitle "CM"]
[BlackTitle "FM"]
[WhiteClock "0:16:17"]
[BlackClock "0:37:11"]
[Variant "Standard"]
[EndDate "2026.08.06"]
[EndTime "18:16:06"]

1. d4 {[%clk 1:30:57]}  e6 {[%clk 1:22:36]} 2. c4 {[%clk 1:31:21]}  f5 {[%clk 1:22:58]} 3. g3 {[%clk 1:31:30]}  Nf6 {[%clk 1:23:23]}
4. Bg2 {[%clk 1:31:53]}  Be7 {[%clk 1:23:47]} 5. Nf3 {[%clk 1:32:15]}  Ne4 {[%clk 1:23:05]} 6. O-O {[%clk 1:32:09]}  d5 {[%clk 1:23:09]}
7. b3 {[%clk 1:31:41]}  Nc6 {[%clk 1:22:23]} 8. Ba3 {[%clk 1:31:16]}  Bf6 {[%clk 1:22:42]} 9. Bb2 {[%clk 1:31:38]}  h5 {[%clk 1:22:47]}
10. Nc3 {[%clk 1:31:56]}  h4 {[%clk 1:19:15]} 11. Rc1 {[%clk 1:32:14]}  hxg3 {[%clk 0:58:49]} 12. fxg3 {[%clk 1:32:34]}  Ne7 {[%clk 0:51:01]}
13. e3 {[%clk 1:19:53]}  c6 {[%clk 0:50:55]} 14. Qe2 {[%clk 1:17:07]}  a5 {[%clk 0:39:59]} 15. Ne5 {[%clk 1:04:52]}  Ng5 {[%clk 0:35:54]}
16. Nd3 {[%clk 1:00:22]}  Ng6 {[%clk 0:29:03]} 17. Kh1 {[%clk 0:44:41]}  Qe7 {[%clk 0:25:18]} 18. Nf4 {[%clk 0:42:38]}  Nxf4 {[%clk 0:24:54]}
19. exf4 {[%clk 0:42:28]}  Ne4 {[%clk 0:25:20]} 20. Nxe4 {[%clk 0:39:34]}  fxe4 {[%clk 0:25:35]} 21. Kg1 {[%clk 0:32:40]}  Bd7 {[%clk 0:24:53]}
22. Rcd1 {[%clk 0:25:55]}  a4 {[%clk 0:23:08]} 23. c5 {[%clk 0:19:56]}  b6 {[%clk 0:23:07]} 24. b4 {[%clk 0:18:23]}  Bc8 {[%clk 0:23:05]}
25. Rfe1 {[%clk 0:17:17]}  g6 {[%clk 0:22:41]} 26. a3 {[%clk 0:16:36]}  b5 {[%clk 0:22:45]} 27. Qf2 {[%clk 0:14:33]}  Ra7 {[%clk 0:22:39]}
28. Bc1 {[%clk 0:09:57]}  O-O {[%clk 0:22:37]} 29. Qe3 {[%clk 0:09:45]}  Qh7 {[%clk 0:22:48]} 30. Rf1 {[%clk 0:09:18]}  Raf7 {[%clk 0:20:43]}
31. g4 {[%clk 0:05:05]}  Qh4 {[%clk 0:20:02]} 32. g5 {[%clk 0:04:13]}  Bd8 {[%clk 0:20:17]} 33. Qg3 {[%clk 0:04:25]}  Qh5 {[%clk 0:18:31]}
34. Be3 {[%clk 0:03:10]}  Bc7 {[%clk 0:18:47]} 35. Rd2 {[%clk 0:03:20]}  Bd7 {[%clk 0:18:50]} 36. Rdf2 {[%clk 0:03:29]}  Rh7 {[%clk 0:18:57]}
37. Re1 {[%clk 0:00:58]}  Kg7 {[%clk 0:16:47]} 38. Bf1 {[%clk 0:00:47]}  Qh4 {[%clk 0:17:13]} 39. Bg2 {[%clk 0:00:48]}  Rfh8 {[%clk 0:17:07]}
40. Qxh4 {[%clk 0:00:38]}  Rxh4 {[%clk 0:17:32]} 41. h3 {[%clk 0:00:54]}  e5 {[%clk 0:12:44]} 42. fxe5 {[%clk 0:26:14]}  Bxh3 {[%clk 0:42:54]}
43. Bxh3 {[%clk 0:24:24]}  Rxh3 {[%clk 0:43:19]} 44. Kf1 {[%clk 0:20:53]}  Bd8 {[%clk 0:37:22]} 45. Ke2 {[%clk 0:20:33]}  Rxe3+ {[%clk 0:34:06]}
46. Kxe3 {[%clk 0:19:25]}  Bxg5+ {[%clk 0:34:30]} 47. Ke2 {[%clk 0:19:49]}  Bh4 {[%clk 0:34:56]} 48. Ref1 {[%clk 0:19:53]}  Bxf2 {[%clk 0:35:20]}
49. Rxf2 {[%clk 0:20:20]}  Rf8 {[%clk 0:35:13]} 50. Rxf8 {[%clk 0:15:59]}  Kxf8 {[%clk 0:35:38]} 51. Kf2 {[%clk 0:13:41]}  Ke7 {[%clk 0:36:02]}
52. Kg3 {[%clk 0:14:05]}  Ke6 {[%clk 0:36:28]} 53. Kg4 {[%clk 0:14:31]}  g5 {[%clk 0:36:54]} 54. Kg3 {[%clk 0:14:57]}  Kf5 {[%clk 0:37:21]}
55. Kf2 {[%clk 0:15:19]}  g4 {[%clk 0:37:46]} 56. Kg3 {[%clk 0:15:32]}  e3 {[%clk 0:37:16]} 57. Kg2 {[%clk 0:15:58]}  Kg6 {[%clk 0:37:41]}
58. Kg3 {[%clk 0:15:37]}  Kf7 {[%clk 0:36:45]} 59. Kg2 {[%clk 0:15:52]}  Ke6 {[%clk 0:37:11]} 60. Kg3 {[%clk 0:16:17]}  Kf5 {[%clk 0:37:36]} 1/2-1/2